Cogmind - Beta 9.3 *** ADVENTURER MODE // 2019.12.19 @ 22:11:36 // Winter2019/RPGLIKE Player: Senebrae Result: Self-destructed Performance ------------- Evolutions (3) 1500 Regions Visited (8) 1600 Robots Destroyed (65) 325 Value Destroyed (1511) 1511 Prototype IDs (0) 0 Alien Tech Used (0) 0 Bonus (194) 194 TOTAL SCORE: 5130 Bonus ------- High Alert Combat Kills 11 Follower Combat Kills 183 Cogmind --------- Core Integrity 1321/1500 Matter 102/400 Energy 150/150 System Corruption 0% Temperature Cool (0) Movement Walking (120) Location -7/Factory Parts ------- > --- POWER (1) -------- (None) > --- PROPULSION (4) --- Improved Carbon-fiber Leg Improved Carbon-fiber Leg > --- UTILITY (3) ------ Core Analyzer Improved Utility Shielding Improved Light Armor Plating > --- WEAPON (2) ------- (None) > --- INVENTORY (2) ---- Minigun Improved Light Cannon Peak State ------------ > --- POWER ------------ Improved Deuterium Engine > --- PROPULSION ------- Advanced Treads Improved Carbon-fiber Leg Improved Carbon-fiber Leg Improved Carbon-fiber Leg > --- UTILITY ---------- Core Analyzer Improved Utility Shielding Improved Light Armor Plating > --- WEAPON ----------- Flak Cannon Advanced Assault Cannon > --- INVENTORY -------- Minigun Improved Light Cannon [Rating: 36] Favorites ----------- Power Improved Ion Engine Engine Improved Ion Engine Propulsion Aluminum Leg Treads Advanced Treads Leg Aluminum Leg Utility Improved Terrain Scanner Device Improved Terrain Scanner Storage Medium Battery Processor Core Analyzer Protection Propulsion Shielding Weapon Improved Light Cannon Ballistic Gun Assault Rifle Ballistic Cannon Improved Light Cannon Build | -11 -10 -10 -9 -9 -9 -8 -8 -7 ------- Run | Scr Mat Min Mat Min Exi Min Mat Fac Slots Evolved 6 | 2 . 1 1 . . . 1 1 Power . | . . . . . . . . . Propulsion 3 | 1 . . . . . . 1 1 Utility 2 | . . 1 1 . . . . . Weapon 1 | 1 . . . . . . . . Parts Attached 42 | 6 9 4 6 . . 5 6 6 Power 7 | 1 2 . . . . 1 1 2 Engine 7 | 1 2 . . . . 1 1 2 Core . | . . . . . . . . . Reactor . | . . . . . . . . . Propulsion 14 | 2 2 1 3 . . 1 3 2 Treads 1 | . . . . . . . . 1 Leg 13 | 2 2 1 3 . . 1 3 1 Wheel . | . . . . . . . . . Hover . | . . . . . . . . . Flight . | . . . . . . . . . Utility 8 | 1 . 1 1 . . 3 1 1 Device 1 | 1 . . . . . . . . Storage 1 | . . . . . . 1 . . Processor 1 | . . . . . . . . 1 Hackware . | . . . . . . . . . Protection 5 | . . 1 1 . . 2 1 . Artifact . | . . . . . . . . . Weapon 13 | 2 5 2 2 . . . 1 1 Energy Gun . | . . . . . . . . . Energy Cannon . | . . . . . . . . . Ballistic Gun 9 | 2 5 2 . . . . . . Ballistic Cannon 4 | . . . 2 . . . 1 1 Launcher . | . . . . . . . . . Special Weapon . | . . . . . . . . . Impact Weapon . | . . . . . . . . . Slashing Weapon . | . . . . . . . . . Piercing Weapon . | . . . . . . . . . Special Melee Weapon . | . . . . . . . . . Unidentified Prototypes . | . . . . . . . . . Parts Lost . | . . . . . . . . . Power . | . . . . . . . . . Propulsion . | . . . . . . . . . Utility . | . . . . . . . . . Weapon . | . . . . . . . . . Highest Loss Streak . | . . . . . . . . . Average Slot Usage (%) 99 | . 97 98 99 100 100 100 99 99 Engine 12 | . 14 14 12 12 12 12 11 10 Treads 2 | . . . . . . . . 9 Leg 28 | . 33 28 25 25 25 25 30 30 Device 11 | . 16 14 12 12 12 12 11 8 Protection 18 | . . 12 24 25 25 25 22 20 Ballistic Gun 8 | . 32 27 3 . . . . . Ballistic Cannon 16 | . . . 21 25 25 25 22 20 Naked Turns . | . . . . . . . . . Heaviest Build 28 | 9 11 13 18 18 18 18 21 28 Greatest Support 64 | 20 20 25 25 25 25 25 59 64 Greatest Overweight (x) . | . . . . . . . . . Average Overweight (x) . | . . . . . . . . . Largest Inventory Capacity 2 | 1 1 2 2 2 2 2 2 2 Average Capacity 1 | 1 1 1 2 2 2 2 2 2 Most Carried 2 | 1 1 2 2 2 2 2 2 2 Average Carried 1 | . 1 1 1 2 2 2 1 1 Final Capacity 2 | 1 1 2 2 2 2 2 2 2 Final Carried 2 | 1 1 2 2 2 2 2 2 2 Class Distribution -------------------- 72% | Hacker-Mutant 27% | Hacker-Skirmisher Dominant Class ---------------- Hacker-Mutant | -10/Materials Hacker-Mutant | -10/Mines Hacker-Mutant | -9/Materials Hacker-Mutant | -9/Mines Hacker-Mutant | -9/Exiles Hacker-Mutant | -8/Mines Hacker-Skirmisher | -8/Materials Hacker-Skirmisher | -7/Factory Resources | -11 -10 -10 -9 -9 -9 -8 -8 -7 ----------- Run | Scr Mat Min Mat Min Exi Min Mat Fac Matter Collected 1548 | 276 177 141 308 . . 358 74 214 Remotely . | . . . . . . . . . Salvage Created 1492 | 115 237 181 334 . . 288 103 234 Parts 107 | 3 26 8 26 . . 23 12 9 Haulers Intercepted . | . . . . . . . . . Recyclers Shooed 6 | . 1 . 1 . . 2 1 1 Parts Field Recycled . | . . . . . . . . . Retrieved Matter . | . . . . . . . . . Parts Self-Destructed . | . . . . . . . . . Prevented . | . . . . . . . . . Kills | -11 -10 -10 -9 -9 -9 -8 -8 -7 ------- Run | Scr Mat Min Mat Min Exi Min Mat Fac Combat Hostiles Destroyed 49 | . 9 5 10 . . 16 3 6 Guns 17 | . 9 5 3 . . . . . Cannons 32 | . . . 7 . . 16 3 6 Classes Destroyed 11 | 2 3 1 3 . . 1 . 1 Worker 2 | . 1 . . . . . . 1 Tunneler 1 | 1 . . . . . . . . Recycler 7 | 1 1 . 1 . . 2 . 2 Operator 1 | . . . 1 . . . . . Watcher 5 | . 1 . 1 . . . 2 1 Swarmer 25 | . 9 3 3 . . 10 . . Grunt 13 | . . 2 4 . . 5 . 2 Brawler 1 | . . . . . . 1 . . Duelist 1 | . . . 1 . . . . . Sentry 8 | . . . 2 . . . 3 3 Hunter 1 | . . . . . . . . 1 Best Kill Streak 9 | 2 4 3 5 . . 9 2 3 Combat Bots Only 7 | . 3 3 5 . . 7 1 2 Max Kills in Single Turn 2 | 1 2 1 1 . . 2 1 1 Gunslinging . | . . . . . . . . . Exploded . | . . . . . . . . . Melee . | . . . . . . . . . Uniques/NPCs Destroyed . | . . . . . . . . . Combat | -11 -10 -10 -9 -9 -9 -8 -8 -7 -------- Run | Scr Mat Min Mat Min Exi Min Mat Fac Damage Taken 1264 | . 228 181 147 . . 451 46 211 Core 947 | . 173 129 113 . . 338 40 154 Absorbed by Shields . | . . . . . . . . . Redirected to Core 727 | . 130 114 75 . . 243 22 143 Core Remaining (%) 90 | 100 . 76 . . . 88 98 . Volleys Fired 156 | 4 30 17 29 . . 39 11 26 Largest 2 | 2 2 2 2 . . 2 2 2 Hottest 92 | 40 40 40 78 . . 78 83 92 Shots Fired 307 | 8 60 34 58 . . 73 22 52 Gun 112 | 8 60 34 10 . . . . . Cannon 195 | . . . 48 . . 73 22 52 Launcher . | . . . . . . . . . Special . | . . . . . . . . . Kinetic 307 | 8 60 34 58 . . 73 22 52 Thermal . | . . . . . . . . . Explosive . | . . . . . . . . . Electromagnetic . | . . . . . . . . . Robot Hit Streak 32 | 7 6 14 16 . . 15 13 32 Robot Miss Streak 3 | . 2 1 2 . . 2 1 3 Penetration Max . | . . . . . . . . . Secondary Targets 6 | . 4 2 . . . . . . Max Gunslinging Chain 1 | . 1 1 . . . . . . Shots Hit Robots 231 | 7 38 27 42 . . 55 15 47 Core Hits 112 | 3 14 8 16 . . 24 9 38 Critical Hits 4 | . 1 1 1 . . . . 1 Critical Kills . | . . . . . . . . . Critical Parts Destroyed 4 | . 1 1 1 . . . . 1 Melee Attacks . | . . . . . . . . . Impact . | . . . . . . . . . Slashing . | . . . . . . . . . Piercing . | . . . . . . . . . Sneak Attacks . | . . . . . . . . . Combat Hostiles . | . . . . . . . . . Follow-up Attacks . | . . . . . . . . . Damage Inflicted 4331 | 77 350 292 842 . . 1252 378 1140 Guns 790 | 77 350 292 71 . . . . . Cannons 3541 | . . . 771 . . 1252 378 1140 Explosions . | . . . . . . . . . Melee . | . . . . . . . . . Ramming . | . . . . . . . . . Kinetic 4331 | 77 350 292 842 . . 1252 378 1140 Thermal . | . . . . . . . . . Explosive . | . . . . . . . . . Electromagnetic . | . . . . . . . . . Impact . | . . . . . . . . . Slashing . | . . . . . . . . . Piercing . | . . . . . . . . . Highest Corruption . | . . . . . . . . . Average Corruption . | . . . . . . . . . Corruption Purged . | . . . . . . . . . Overload Shots . | . . . . . . . . . Overflow Damage 61 | . . . 38 . . 21 . 2 Projectiles 61 | . . . 38 . . 21 . 2 Explosions . | . . . . . . . . . Melee . | . . . . . . . . . Knockbacks 31 | . . . 3 . . 15 . 13 Impact . | . . . . . . . . . Kinetic 28 | . . . 3 . . 12 . 13 Secondary 3 | . . . . . . 3 . . Self-Inflicted Damage . | . . . . . . . . . Shots . | . . . . . . . . . Rammed . | . . . . . . . . . Targets Rammed . | . . . . . . . . . Kicked . | . . . . . . . . . Crushed . | . . . . . . . . . Highest Temperature 306 | . 2 23 96 . . 306 . 7 Average Temperature 55 | . 1 6 28 . . 136 . 5 Received Heat Transfer 531 | . . 96 45 . . 234 18 138 Effects 4 | . . . . . . 4 . . Energy Bleed 1 | . . . . . . 1 . . Interference 3 | . . . . . . 3 . . Siege Activations . | . . . . . . . . . Robots Corrupted . | . . . . . . . . . Combat Hostiles . | . . . . . . . . . Parts Fried . | . . . . . . . . . Impact Corruptions 1 | . . . . . . 1 . . Robots Melted . | . . . . . . . . . Combat Hostiles . | . . . . . . . . . Parts Melted . | . . . . . . . . . Heat Transferred . | . . . . . . . . . Parts Sabotaged . | . . . . . . . . . Parts Stolen . | . . . . . . . . . Parts Stripped . | . . . . . . . . . Power Chain Reactions . | . . . . . . . . . Missiles Intercepted . | . . . . . . . . . Alert | -11 -10 -10 -9 -9 -9 -8 -8 -7 ------- Run | Scr Mat Min Mat Min Exi Min Mat Fac Peak Influence 469 | 10 262 140 469 99 . 385 191 190 Average Influence 140 | 3 107 111 251 99 . 230 106 75 Maximum Alert Level 2 | . 1 . 2 . . 1 . . Low Security (%) 78 | 100 81 100 24 100 . 55 100 100 Level 1 20 | . 18 . 68 . . 44 . . Level 2 . | . . . 6 . . . . . Level 3 . | . . . . . . . . . Level 4 . | . . . . . . . . . Level 5 . | . . . . . . . . . High Security . | . . . . . . . . . Max Security . | . . . . . . . . . Squads Dispatched 2 | . . . 1 . . . . 1 Investigation . | . . . . . . . . . Extermination . | . . . . . . . . . Reinforcement 2 | . . . 1 . . . . 1 Assault . | . . . . . . . . . Garrison . | . . . . . . . . . Intercept . | . . . . . . . . . Construction Impeded 1 | . . . . . . . . 1 Haulers Reinforced . | . . . . . . . . . Stealth | -11 -10 -10 -9 -9 -9 -8 -8 -7 --------- Run | Scr Mat Min Mat Min Exi Min Mat Fac Distress Signals 2 | . 1 . 1 . . . . . Communications Jammed . | . . . . . . . . . Distress Signals . | . . . . . . . . . Times Spotted 77 | . 21 5 17 . . 19 5 10 Peak Tracking Total 6 | . 4 3 4 . . 6 1 2 Tactical Retreats 4 | . 1 . 1 . . 2 . . Traps | -11 -10 -10 -9 -9 -9 -8 -8 -7 ------- Run | Scr Mat Min Mat Min Exi Min Mat Fac Traps Triggered 5 | . 3 . . . . . . 2 Indirectly . | . . . . . . . . . Trap Hack Attempts . | . . . . . . . . . Triggered . | . . . . . . . . . Disarmed 4 | . . . . . . . 4 . Reprogrammed . | . . . . . . . . . Reused . | . . . . . . . . . Traps Extracted . | . . . . . . . . . Installed . | . . . . . . . . . Triggered . | . . . . . . . . . Machines | -11 -10 -10 -9 -9 -9 -8 -8 -7 ---------- Run | Scr Mat Min Mat Min Exi Min Mat Fac Machines Disabled . | . . . . . . . . . Max in Single Turn . | . . . . . . . . . Machines Sabotaged . | . . . . . . . . . Garrisons Compromised . | . . . . . . . . . Overloaded Fab Kills . | . . . . . . . . . Fab Network Shutdowns . | . . . . . . . . . Hacking | -11 -10 -10 -9 -9 -9 -8 -8 -7 --------- Run | Scr Mat Min Mat Min Exi Min Mat Fac Machines Accessed 11 | . 2 . 1 . . . 6 2 Terminals 11 | . 2 . 1 . . . 6 2 Fabricators . | . . . . . . . . . Repair Stations . | . . . . . . . . . Recycling Units . | . . . . . . . . . Scanalyzers . | . . . . . . . . . Garrison Access . | . . . . . . . . . Total Hacks 21 | . 5 . 1 . . . 12 3 Successful 16 | . 4 . 1 . . . 10 1 Failed 5 | . 1 . . . . . 2 2 Catastrophic . | . . . . . . . . . Database Lockouts . | . . . . . . . . . Manual 15 | . 4 . 1 . . . 8 2 Terminals 21 | . 5 . 1 . . . 12 3 Fabricators . | . . . . . . . . . Repair Stations . | . . . . . . . . . Recycling Units . | . . . . . . . . . Scanalyzers . | . . . . . . . . . Garrison Access . | . . . . . . . . . Terminal Hacks 7 | . 2 . 1 . . . 4 . Robot Analysis 1 | . 1 . . . . . . . Level Access Points 1 | . . . . . . . 1 . Locate Traps 3 | . 1 . 1 . . . 1 . Disarm Traps 1 | . . . . . . . 1 . Security Status 1 | . . . . . . . 1 . Fabricator Hacks . | . . . . . . . . . Repair Station Hacks . | . . . . . . . . . Recycling Unit Hacks . | . . . . . . . . . Scanalyzer . | . . . . . . . . . Garrison Access Hacks . | . . . . . . . . . Unauthorized Hacks 21 | . 5 . . . . . 13 3 Terminals 9 | . 2 . . . . . 6 1 Assimilate 1 | . . . . . . . 1 . Botnet 8 | . 2 . . . . . 5 1 Fabricators . | . . . . . . . . . Repair Stations . | . . . . . . . . . Recycling Units . | . . . . . . . . . Scanalyzers . | . . . . . . . . . Garrison Access . | . . . . . . . . . Data Cores Recovered 1 | . . . 1 . . . . . Used 1 | . . . 1 . . . . . Hacking Detections 2 | . 1 . . . . . . 1 Full Trace Events . | . . . . . . . . . Feedback Events . | . . . . . . . . . Feedback Blocked . | . . . . . . . . . Robot Schematics Acquired . | . . . . . . . . . Robots Built . | . . . . . . . . . Matter . | . . . . . . . . . Time . | . . . . . . . . . Total Robot Build Rating . | . . . . . . . . . Part Schematics Acquired . | . . . . . . . . . Parts Built . | . . . . . . . . . Matter . | . . . . . . . . . Time . | . . . . . . . . . Total Part Build Rating . | . . . . . . . . . Parts Repaired . | . . . . . . . . . Time . | . . . . . . . . . Parts Recycled . | . . . . . . . . . Recycled Matter . | . . . . . . . . . Retrieved Matter . | . . . . . . . . . Retrieved Components . | . . . . . . . . . Parts Scanalyzed . | . . . . . . . . . Part Schematics Acquired . | . . . . . . . . . Parts Damaged . | . . . . . . . . . Bothacking | -11 -10 -10 -9 -9 -9 -8 -8 -7 ------------ Run | Scr Mat Min Mat Min Exi Min Mat Fac Used RIF Installer . | . . . . . . . . . Robots Hacked . | . . . . . . . . . Non-combat . | . . . . . . . . . Combat . | . . . . . . . . . Robot Hacks Applied . | . . . . . . . . . Relay Couplers Released . | . . . . . . . . . Robots Rewired . | . . . . . . . . . Allies Hacked . | . . . . . . . . . Hacks Repelled . | . . . . . . . . . Allies | -11 -10 -10 -9 -9 -9 -8 -8 -7 -------- Run | Scr Mat Min Mat Min Exi Min Mat Fac Total Allies 3 | . . 2 . . . . 1 . Largest Group 2 | . . 2 2 1 1 . 1 1 Highest-Rated Group 47 | . . 47 47 31 31 . 10 10 Highest-Rated Ally 31 | . . 31 31 31 31 . 10 10 Total Orders 3 | . . . . . . . 2 1 STAY 1 | . . . . . . . 1 . GOTO 1 | . . . . . . . . 1 FOLLOW 1 | . . . . . . . 1 . Ally Attacks 29 | . . . 29 . . . . . Total Damage 463 | . . . 463 . . . . . Kills 9 | . . . 9 . . . . . Allies Corrupted . | . . . . . . . . . Allies Melted . | . . . . . . . . . Intel | -11 -10 -10 -9 -9 -9 -8 -8 -7 ------- Run | Scr Mat Min Mat Min Exi Min Mat Fac Robot Analysis Total 1 | . 1 . . . . . . . Derelict Logs Recovered 2 | . . 2 . . . . . . Drone Launches . | . . . . . . . . . Drone Recoveries . | . . . . . . . . . Exploration | -11 -10 -10 -9 -9 -9 -8 -8 -7 ------------- Run | Scr Mat Min Mat Min Exi Min Mat Fac Turns Passed 3356 | 68 470 444 454 28 118 572 523 679 Spaces Moved 2165 | 43 296 296 266 24 99 360 376 405 Core 9 | 9 . . . . . . . . Treads . | . . . . . . . . . Legs 2156 | 34 296 296 266 24 99 360 376 405 Wheels . | . . . . . . . . . Hover . | . . . . . . . . . Flight . | . . . . . . . . . Fastest Speed 50 | 50 120 120 120 120 120 120 120 120 Average Speed 119 | 105 120 120 120 120 120 120 120 120 Slowest Speed 120 | 120 120 120 120 120 120 120 120 120 Overloaded Moves . | . . . . . . . . . Propulsion Burnouts . | . . . . . . . . . Robots Hopped . | . . . . . . . . . Cave-ins Triggered . | . . . . . . . . . Exploration Rate (%) 35 | 4 49 65 32 10 16 91 37 16 Regions Visited 8 Branch Regions 4 Pre-discovered Areas . | . . . . . . . . . Known Exits Taken 1 | . . . . . . . 1 . Unknown Exits Taken 7 | 1 1 1 1 1 1 1 . . Scrap Searched 4 | . . 2 . . . 2 . . Spaces Dug . | . . . . . . . . . Terrain Destroyed 17 | . . . 3 . . 6 1 7 Melee . | . . . . . . . . . Projectile 17 | . . . 3 . . 6 1 7 AOE . | . . . . . . . . . Actions | -11 -10 -10 -9 -9 -9 -8 -8 -7 --------- Run | Scr Mat Min Mat Min Exi Min Mat Fac Total 2632 | 57 354 355 344 23 98 427 429 545 Wait 193 | . 10 34 26 . . 5 14 104 Move 2157 | 42 295 295 265 23 98 359 375 405 Hop . | . . . . . . . . . Pick Up 12 | 5 . 2 1 . . . 3 1 Fast Attach 21 | 2 7 1 1 . . 4 3 3 Attach 7 | 4 . 1 1 . . . . 1 Detach . | . . . . . . . . . Swap 14 | . 2 2 4 . . 1 3 2 Drop 25 | . 2 3 4 . . 5 8 3 Fire 156 | 4 30 17 29 . . 39 11 26 Melee . | . . . . . . . . . Ram . | . . . . . . . . . Kick . | . . . . . . . . . Crush . | . . . . . . . . . Escape Stasis . | . . . . . . . . . Rewire . | . . . . . . . . . Trap . | . . . . . . . . . Miscellaneous 47 | . 8 . 13 . . 14 12 . Route ------- -11/Scrapyard -10/Materials (discovered 2 exits: [*Min x2]) -10/Mines -9/Materials (discovered 2 exits: [*Min] / *Sto) -9/Mines (discovered 2 exits: Mat / [*Exi]) -9/Exiles -8/Mines (discovered 2 exits: *Mat x2) -8/Materials (discovered 3 exits: *Fac x3) -7/Factory History --------- Turn | Location | Event 1 | -11/Scrapyard | Upgraded with Propulsion slot (x1) 1 | -11/Scrapyard | Upgraded with Weapon slot (x1) 3 | -11/Scrapyard | Discovered new exit (range 15) 69 | -11/Scrapyard | Entered Materials 99 | -10/Materials | Discovered new exit (range 11) 243 | -10/Materials | Discovered new exit (range 14) 303 | -10/Materials | Build established: Hacker-Mutant 539 | -10/Materials | Entered Mines 541 | -10/Mines | Reached level 2 542 | -10/Mines | Upgraded with Utility slot (x1) 680 | -10/Mines | Discovered new exit (range 10) 836 | -10/Mines | Learned Materials trap positions 983 | -10/Mines | Entered Materials 983 | -9/Materials | Accompanied by 2 allies 984 | -9/Materials | Identified exit to Storage 985 | -9/Materials | Loaded intel: 7 trap records 985 | -9/Materials | Reached level 3 985 | -9/Materials | Reached level 4 985 | -9/Materials | Upgraded with Utility slot (x1) 994 | -9/Materials | Led the pair of lost Derelicts to an unsafe place 1096 | -9/Materials | Reached level 5 1413 | -9/Materials | Discovered new exit (range 12) 1437 | -9/Materials | Entered Mines 1437 | -9/Mines | Accompanied by 1 ally 1439 | -9/Mines | Reached level 6 1445 | -9/Mines | Discovered new exit (range 13) 1454 | -9/Mines | Discovered new exit (range 12) 1459 | -9/Mines | Deemed a non-threat by the Exiles lab entrance 1465 | -9/Mines | Entered Exiles 1465 | -9/Exiles | Accompanied by 1 ally 1486 | -9/Exiles | Discovered new exit (range 16) 1495 | -9/Exiles | Led the pair of lost Derelicts to a safe place 1497 | -9/Exiles | Met 8R-AWN 1539 | -9/Exiles | Met EX-HEX 1583 | -9/Exiles | Entered Mines 1691 | -8/Mines | Reached level 7 1822 | -8/Mines | Destroyed 7 combat bots 1857 | -8/Mines | Discovered new exit (range 7) 2137 | -8/Mines | Discovered new exit (range 13) 2155 | -8/Mines | Entered Materials 2157 | -8/Materials | Reached level 8 2207 | -8/Materials | Reached level 9 2301 | -8/Materials | Upgraded with Propulsion slot (x1) 2380 | -8/Materials | Identified exit to Factory 2599 | -8/Materials | Build established: Hacker-Skirmisher 2678 | -8/Materials | Entered Factory 2678 | -7/Factory | Accompanied by 1 ally 2680 | -7/Factory | Reached level 10 2680 | -7/Factory | Upgraded with Propulsion slot (x1) 3327 | -7/Factory | Reached level 11 3357 | -7/Factory | Self-destructed Last Messages --------------- 03341_ K-01 Serf collects debris. 03343_ U-05 Engineer builds a Wall. 03345_ K-01 Serf collects debris. 03345_ K-01 Serf destroyed. 03347_ U-05 Engineer builds a Wall. 03349_ R-06 Scavenger collects Lgt. Ion Engine. 03349_ Acquired 22 matter. 03351_ Triggered Blade Trap. 03351_ Massive razor-sharp blades shoot up from within the floor. 03351_ Imp. Carbon-fiber Leg severed. 03351_ Adv. Treads severed. 03351_ Imp. Carbon-fiber Leg severed. 03352_ U-05 Engineer lays Concrete. 03353_ Acquired Imp. Carbon-fiber Leg. 03356_ Triggered Blade Trap. 03356_ Massive razor-sharp blades shoot up from within the floor. 03356_ Flak Cannon severed. 03356_ Imp. Deuterium Engine severed. 03356_ Adv. Assault Cannon severed. 03356_ U-05 Engineer lays Concrete. Map ----- +----------------------------------------------------+ | #############?####### """" ???????????? | | ##?##??### """" ???????????? | | #?###?#### """" ????????????? | | ##?#??#?## ???????????? | | ####?##### """" ??????????????? | | ###?#?#### """" #?###?##????????? | | ###### ###?#?#### """" # ?? ???????????? | | ###### ########## """" #? ??????#?????? | | ###?## """" +?? ? ?#?????? | | #?#?## """" #?? ???? ??#????? | | ####?# """" #? ??"? ??#????? | | ###?## #?? ??"????????? | | ?##### #?? ???? #??????? | | ? # ################# # ? "?"????????? | | """? # ## ? ? # # ?? ? ????????? | | """ # ## """ # ###?#???????????? | | """ + ## ""?"" ? "R" # ###?#????##?????? | | # #? ??"""? ?" " # ##?#?##?###?????? | | """? # ## """ ?# ####???#?#??????? | | """ ?# ## ? ? #u #?###???????????? | | """ ?# #############+### ##?#?##?#???????? | | ????# ########## #?###?##??#?????? | | #??### ########## ######?#????????? | | ? # ########## u #?#####?????????? | | ""?# #?######## =u^ ##???###????????? | | ???"?# rk *u@^] #?##??##????????? | | ???" # ############u##############??#?##?????? | | "??# #??#?## #######??#?#???????? | | ?????? ?#?#### ######?####??#?????? | | ????????? ###?### ? #?#?#?###?#?#??????? | | ?? ???? ?????##?# ] ########???????????? | | ????????????#??### ##??##?#???????????? | | ?????????? ?###??# #####??#?#??#??????? | | ????????? ?##?### #?##?#??#??????????? | | ??"??????? #?###?# ##?##?#????????????? | | "?"??????? ??#?### ####?#?###?????????? | | ??"???????????#?## ##?######??????????? | | ??"??????????????# ####?##?##??#??????? | | ? ??????????###?# ] ####???????????????? | | ??? ????????????###############?##?#????#????????? | | ??????????????????????????#???#???#??????????????? | | ##?#???????????????#?????#??####?????????????????? | | ???? ?????????????#???#????#?????????????????????? | | ?? ? ?????????????##??#???#?????###?????????????? | | ? ? ????????????????????????????????????????????? | | ??? ?????????????????????????? ??????????????????? | | ? ? ????????????????????????????????????????????? | | ? ?????????????????????????????????????????????? | | ?????#???????????????????????????????????????????? | | ????????????????????????????????????????????????? | +----------------------------------------------------+ Best States ------------- Heat Dissipation 55 Energy Generation 16 Energy Capacity 340 Matter Stores 350 Matter Capacity 400 Sight Range 18 Robot Scan Range 6 Terrain Scan Range 16 Terrain Scan Density 310 Armor Coverage 150 Resistance: KI 40 Resistance: TH 40 Resistance: EX 30 Resistance: EM 20 Resistance: I 20 Resistance: S 20 Resistance: P 20 Core Shielding 20 Propulsion Shielding 33 Utility Shielding 66 Evasion (%) 40 Core Analysis 6 Offensive Hacking 25 Defensive Hacking 10 Item Schematics ----------------- None Robot Schematics ------------------ None Fabricated ------------ Nothing Alien Tech Used ----------------- None Achievements -------------- None Challenges ------------ None RPGLIKE | -11 -10 -10 -9 -9 -9 -8 -8 -7 --------- Run | Scr Mat Min Mat Min Exi Min Mat Fac Levels Raised 10 | . . 1 3 1 . 1 2 2 XP Earned 19235 | 4000 1085 1100 4851 500 200 2645 2020 2834 XP Spent 18890 | 3980 . 1520 4465 . . 3030 2940 2955 Upgrades 67 | 21 . 5 14 . . 9 10 8 Propulsion Slot 3 | 1 . . . . . . 1 1 Utility Slot 2 | . . 1 1 . . . . . Weapon Slot 1 | 1 . . . . . . . . Core Integrity 18 | 8 . . 5 . . 2 3 . Heat Dissipation 5 | . . . . . . 3 1 1 Energy Storage 1 | . . . . . . . . 1 Matter Storage 2 | . . . 1 . . . . 1 Mass Support 2 | . . 1 . . . . . 1 Inventory Capacity 2 | 1 . 1 . . . . . . Sight Range 2 | . . . 1 . . . 1 . Sensor Range 3 | 1 . . . . . . 1 1 Terrain Scan Density 3 | 1 . 1 1 . . . . . Ranged Accuracy 4 | . . . 3 . . 1 . . Hack Attack % 3 | 2 . . 1 . . . . . Hack Defense % 2 | 2 . . . . . . . . KI Resistance % 4 | 1 . 1 1 . . 1 . . TH Resistance % 4 | 2 . . . . . 1 1 . EX Resistance % 2 | . . . . . . . 2 . KI Damage % 3 | 1 . . . . . 1 . 1 EX Damage % 1 | . . . . . . . . 1 Protomatter Created 378 | . 44 . 96 . . 95 87 56 Integrity Restored 912 | . 122 . 264 . . 267 259 . Core 768 | . 64 . 264 . . 267 173 . Parts 144 | . 58 . . . . . 86 . Protomatter Decayed 182 | . . . 120 . . 6 . 56 Game ------ Seed KineticRelayClaws Manual? 0 Play Time 00:58:42 Cumulative 73.3 hours Start 2019.12.19 @ 20:54:39 End 2019.12.19 @ 22:11:36 Sessions 1 Manual Loads 0 Difficulty Adventurer Special Mode Winter2019/RPGLIKE Game No. 48 Rogue 46 Adventurer 2 Explorer 0 Win Type - Total 0 Types 0/0/0/0/0/0/0 Lore% 28 Gallery% 36 Achievement% 32 Wizard Run 0 Options --------- ASCII 0 Keyboard 0 Movement Mouse Keybinds 0 Fullscreen 1 Font 18/SmallcapsGlow Map View 76x50 Tactical HUD 1 Map Filters NONE Filters NONE Steam 1 RUN: 33d5a2ab-d152-4bad-a51f-ce40de214955